lending/lending_fUSD_20241229
["ID","MTS","AMOUNT","RATE_DAILY","PERIOD"]
[346973263,1735444232263,-250.0,0.0001192,2]
[346973264,1735444232273,-1852.42,0.00011948,2]
[346973265,1735444232283,-300.0,0.00011965,2]
[346973266,1735444232296,-588.89,0.00011966,2]
[346973267,1735444232305,-5110.11,0.00011966,2]
[346973268,1735444232315,-150.99,0.00011966,2]
[346973269,1735444232325,-166.60751644,0.00011976,2]
[346973270,1735444232338,-833.39248356,0.00011976,2]
[346973271,1735444232347,-378.25192707,0.00011976,2]
[346973272,1735444232359,-1861.19286154,0.00011976,2]
[346973273,1735444232371,-921.4513209,0.00011976,2]
[346973304,1735444237904,-769.96443153,0.00011976,2]
[346973305,1735444237916,-292.04521374,0.00011976,2]
[346973306,1735444237927,-358.16823312,0.00011976,2]
[346973307,1735444238046,-1271.09,0.00011976,2]
[346973308,1735444238057,-959.42002718,0.00011976,2]
[346973309,1735444238069,-833.69583873,0.00011976,2]
[346973310,1735444238081,-355.72,0.00011976,2]
[346973311,1735444238092,-4897.92014619,0.00011976,2]
[346973312,1735444238102,-450.0,0.00012,2]
[346973313,1735444238111,-734.48,0.00012283,2]
[346973314,1735444238120,-394.245,0.0001234,2]
[346973315,1735444238130,-368.79,0.00012792,2]
[346973316,1735444238139,-682.37234599,0.000128,2]
[346973317,1735444238151,-1003.01704962,0.000128,2]
[346973318,1735444238162,-12755.85060439,0.000128,2]
[346973319,1735444238171,-150.16,0.0001284,2]
[346973325,1735444238355,-368.77,0.00012857,2]
[346973328,1735444238375,-151.3090628,0.00012887,2]
[346973330,1735444238385,-1000.0,0.00012888,2]
[346973332,1735444238395,-23677.7591,0.00012888,2]
[346973334,1735444238404,-1177.64112259,0.00012888,2]
[346973336,1735444238413,-5009.0309,0.00012888,2]
[346973338,1735444238423,-1177.64112257,0.00012889,2]
[346973340,1735444238432,-165.05193656,0.0001289,2]
[346973342,1735444238442,-1177.64112257,0.0001289,2]
[346973344,1735444238452,-1000.0,0.0001289,2]
[346973346,1735444238461,-173.633,0.0001289,2]
[346973348,1735444238471,-374.67,0.00012893,2]
[346973350,1735444238480,-370.44,0.00012893,2]
[346973352,1735444238490,-3000.0,0.00012893,2]
[346973354,1735444238499,-151.3090628,0.00012894,2]
[346973356,1735444238508,-165.05193655,0.00012895,2]
[346973358,1735444238517,-905.912,0.000129,2]
[346973360,1735444238526,-165.05193655,0.000129,2]
[346973362,1735444238536,-50000.0,0.000129,2]
[346973364,1735444238545,-151.3090628,0.000129,2]
[346973366,1735444238554,-439.1218,0.00012959,2]
[346973368,1735444238564,-500.0,0.00012986,2]
[346973370,1735444238573,-2416.64562265,0.00012987,2]
[346973372,1735444238582,-39562.37962523,0.00012987,2]
[346973374,1735444238595,-1027.90064709,0.00012987,2]
[346973542,1735444240127,-637.66625318,0.00012987,2]
[346973559,1735444240283,-293.3832793,0.00012987,2]
[346973561,1735444240298,-9540.0,0.00012987,2]
[346973564,1735444240309,-191246.47152714,0.00012987,2]
[346973828,1735444242951,-699.5899999,0.00012987,2]
[346973831,1735444242963,-424.49932413,0.00012987,2]
[346973833,1735444242974,-500.57827625,0.00012987,2]
[346973835,1735444242986,-3953.81927455,0.00012987,2]
[346973858,1735444243194,-2721.28325512,0.00012987,2]
[346973861,1735444243206,-210425.24919466,0.00012987,2]
[346973863,1735444243215,-1466.77,0.00012987,2]
[346973865,1735444243224,-500.0,0.00012987,2]
[346973867,1735444243234,-1090.35,0.00012987,2]
[346973869,1735444243243,-500.0,0.00012987,2]
[346973871,1735444243252,-500.0,0.00012987,2]
[346973873,1735444243262,-509.73663026,0.00012987,2]
[346973875,1735444243271,-500.0,0.00012987,2]
[346973877,1735444243280,-818.4,0.00012987,2]
[346973879,1735444243292,-500.0,0.00012987,2]
[346973901,1735444243484,-500.0,0.00012987,2]
[346973903,1735444243493,-500.0,0.00012987,2]
[346973904,1735444243503,-500.0,0.00012987,2]
[346973907,1735444243512,-500.0,0.00012987,2]
[346973910,1735444243522,-500.0,0.00012987,2]
[346973913,1735444243531,-500.0,0.00012987,2]
[346973915,1735444243540,-500.0,0.00012987,2]
[346973918,1735444243549,-309.06456195,0.00012987,2]
[346973921,1735444243561,-190.93543805,0.00012987,2]
[346973923,1735444243570,-500.0,0.00012987,2]
[346973925,1735444243580,-500.0,0.00012987,2]
[346973926,1735444243590,-500.0,0.00012987,2]
[346973928,1735444243599,-500.0,0.00012987,2]
[346973930,1735444243608,-500.0,0.00012987,2]
[346973932,1735444243617,-500.0,0.00012987,2]
[346973933,1735444243626,-1730.23,0.00012987,2]
[346973935,1735444243635,-500.0,0.00012987,2]
[346973937,1735444243645,-500.0,0.00012987,2]
[346973939,1735444243654,-500.0,0.00012987,2]
[346973941,1735444243663,-500.0,0.00012987,2]
[346973943,1735444243672,-500.0,0.00012987,2]
[346973944,1735444243681,-505.49823698,0.00012987,2]
[346973946,1735444243690,-500.0,0.00012987,2]
[346973948,1735444243699,-500.0,0.00012987,2]
[346973950,1735444243708,-500.0,0.00012987,2]
[346973951,1735444243718,-500.0,0.00012987,2]
[346973953,1735444243727,-500.0,0.00012987,2]
[346973955,1735444243736,-500.0,0.00012987,2]
[346973957,1735444243745,-500.0,0.00012987,2]
[346973959,1735444243754,-500.0,0.00012987,2]
[346973961,1735444243763,-500.0,0.00012987,2]
[346973962,1735444243773,-504.22077403,0.00012987,2]
[346973964,1735444243783,-500.0,0.00012987,2]
[346973966,1735444243793,-500.0,0.00012987,2]
[346973968,1735444243801,-500.0,0.00012987,2]
[346973970,1735444243810,-500.0,0.00012987,2]
[346973971,1735444243819,-500.0,0.00012987,2]
[346973973,1735444243828,-500.0,0.00012987,2]
[346973975,1735444243838,-500.0,0.00012987,2]
[346973977,1735444243847,-500.0,0.00012987,2]
[346973978,1735444243855,-500.0,0.00012987,2]
[346973980,1735444243864,-500.0,0.00012987,2]
[346973982,1735444243874,-500.0,0.00012987,2]
[346973984,1735444243883,-500.0,0.00012987,2]
[346973986,1735444243891,-503.21378096,0.00012987,2]
[346973988,1735444243901,-239.30954337,0.00012987,2]
[346973990,1735444243910,-500.0,0.00012987,2]
[346973992,1735444243919,-500.0,0.00012987,2]
[346973993,1735444243928,-500.0,0.00012987,2]
[346973995,1735444243938,-500.0,0.00012987,2]
[346973997,1735444243947,-500.0,0.00012987,2]
[346973999,1735444243956,-2690.26,0.00012987,2]
[346974000,1735444243965,-500.0,0.00012987,2]
[346974002,1735444243975,-500.0,0.00012987,2]
[346974004,1735444243984,-500.0,0.00012987,2]
[346974006,1735444243993,-500.0,0.00012987,2]
[346974008,1735444244002,-223.06160643,0.00012987,2]
[346974145,1735444245974,-1021.87,0.00012986,2]
[346974147,1735444245986,-500.0,0.00012987,2]
[346974149,1735444246000,-500.0,0.00012987,2]
[346974152,1735444246013,-500.0,0.00012987,2]
[346974154,1735444246025,-500.0,0.00012987,2]
[346974156,1735444246038,-157.82059017,0.00012987,2]
[346974157,1735444246048,-500.0,0.00012987,2]
[346974158,1735444246059,-500.0,0.00012987,2]
[346974159,1735444246072,-500.0,0.00012987,2]
[346974160,1735444246087,-191.23280738,0.00012987,2]
[346974162,1735444246098,-500.0,0.00012987,2]
[346974163,1735444246108,-500.0,0.00012987,2]
[346974164,1735444246120,-500.0,0.00012987,2]
[346974165,1735444246136,-500.0,0.00012987,2]
[346974166,1735444246147,-500.0,0.00012987,2]
[346974167,1735444246159,-500.0,0.00012987,2]
[346974168,1735444246171,-30.53262665,0.00012987,2]
[346974171,1735444246188,-469.46737335,0.00012987,2]
[346974173,1735444246199,-1128.38,0.00012987,2]
[346974174,1735444246211,-500.0,0.00012987,2]
[346974175,1735444246223,-500.0,0.00012987,2]
[346974176,1735444246235,-500.0,0.00012987,2]
[346974177,1735444246247,-500.0,0.00012987,2]
[346974178,1735444246258,-500.0,0.00012987,2]
[346974179,1735444246270,-470.70053403,0.00012987,2]
[346974180,1735444246336,-29.29946597,0.00012987,2]
[346974181,1735444246347,-1108.98257052,0.00012987,2]
[346974182,1735444246403,-87.93742948,0.00012987,2]
[346974183,1735444246415,-510.14421393,0.00012987,2]
[346974184,1735444246427,-500.0,0.00012987,2]
[346974187,1735444246439,-101.31835659,0.00012987,2]
[346974272,1735445117179,-800.0,0.0001,2]
[346974273,1735445119044,-800.0,0.0001,2]
[346974274,1735445120943,-800.0,0.0001,2]
[346974275,1735445122649,-800.0,0.0001,2]
[346974276,1735445124426,-800.0,0.0001,2]
[346974277,1735445126209,-800.0,0.0001,2]
[346974278,1735445128221,-800.0,0.0001,2]
[346974288,1735445141327,-436.9437708,0.0001,2]
[346974296,1735445224143,200.0,9.863e-05,2]
[346974328,1735445435131,-507.46,9.863e-05,2]
[346974329,1735445435140,-270.37,0.00010137,2]
[346974330,1735445435149,-300.0,0.00010198,2]
[346974331,1735445435158,-10000.0,0.00010199,5]
[346974332,1735445435167,-152.41,0.00010699,2]
[346974333,1735445435176,-152.91,0.00010699,2]
[346974334,1735445435185,-150.27,0.00010699,2]
[346974335,1735445435194,-151.32,0.00010699,2]
[346974336,1735445435204,-420.0,0.00011215,2]
[346974337,1735445435213,-250.0,0.00011649,2]
[346974338,1735445435222,-250.0,0.00011663,2]
[346974339,1735445435231,-163.99502135,0.00011688,2]
[346974340,1735445435240,-158.30827954,0.00011688,2]
[346974341,1735445435249,-401.84,0.00011696,2]
[346974342,1735445435259,-300.0,0.00011714,2]
[346974343,1735445435268,-250.0,0.00011726,2]
[346974344,1735445435277,-562.22,0.0001179,2]
[346974345,1735445435286,-150.99,0.0001179,2]
[346974346,1735445435295,-970.62,0.00011912,2]
[346974347,1735445435304,-1000.0,0.00011963,2]
[346974348,1735445435313,-450.0,0.00012,2]
[346974349,1735445435324,-707.46,0.00012127,2]
[346974350,1735445435334,-872.74,0.00012192,2]
[346974351,1735445435343,-1955.14,0.00012192,2]
[346974352,1735445435353,-500.0,0.000123,2]
[346974353,1735445435363,-300.0,0.00012334,2]
[346974354,1735445435372,-402.922,0.0001234,2]
[346974355,1735445435381,-10893.0,0.00012474,2]
[346974356,1735445435393,-9643.327,0.00012698,2]
[346974357,1735445435403,-1175.288,0.00012698,2]
[346974358,1735445435413,-210.308,0.00012698,2]
[346974359,1735445435422,-3907.941,0.00012698,2]
[346974360,1735445435431,-2885.1537,0.0001286,2]
[346974361,1735445435441,-191.08218015,0.00012886,2]
[346974362,1735445435450,-1887.07277717,0.00012886,2]
[346974363,1735445435462,-8676.47622283,0.00012886,2]
[346974364,1735445435471,-197.38432372,0.00012887,2]
[346974365,1735445435480,-5655.3064,0.00012887,2]
[346974366,1735445435490,-191.0821801,0.00012888,2]
[346974367,1735445435499,-191.0821801,0.00012889,2]
[346974368,1735445435508,-197.38432371,0.00012889,2]
[346974369,1735445435517,-191.0821801,0.00012891,2]
[346974370,1735445435527,-197.38432371,0.00012891,2]
[346974371,1735445435538,-95.31379407,0.00012892,2]
[346974374,1735445435568,-95.76838603,0.00012892,2]
[346974375,1735445435577,-197.38432371,0.00012894,2]
[346974377,1735445435587,-191.0821801,0.00012894,2]
[346974378,1735445435596,-18.86511016,0.00012895,2]
[346974380,1735445435621,-172.21706994,0.00012895,2]
[346974382,1735445435631,-197.38432371,0.00012896,2]
[346974384,1735445435640,-191.0821801,0.00012897,2]
[346974386,1735445435649,-197.38432371,0.00012898,2]
[346974388,1735445435658,-724.729,0.00012898,2]
[346974391,1735445435668,-191.0821801,0.00012898,2]
[346974392,1735445435678,-212.34523659,0.000129,2]
[346974395,1735445435688,-197.38432371,0.000129,2]
[346974396,1735445435697,-191.0821801,0.000129,2]
[346974398,1735445435707,-151.24269809,0.000129,2]
[346974400,1735445435716,-1842.0,0.00012959,2]
[346974402,1735445435725,-934.0,0.00012959,2]
[346974404,1735445435734,-159.78368837,0.00012973,2]
[346974406,1735445435744,-11.82690628,0.00012973,2]
[346974410,1735445435774,-491.46209492,0.00012973,2]
[346974412,1735445435783,-880.78,0.00012985,2]
[346974414,1735445435794,-2641.07,0.00012985,2]
[346974416,1735445435805,-1303.13,0.00012985,2]
[346974418,1735445435814,-289.53731875,0.00012985,2]
[346974422,1735445435850,-2500.0,0.00012886,2]
[346974424,1735445435859,-626.07164089,0.00012985,2]
[346974427,1735445435871,-1445.16104036,0.00012985,2]
[346974429,1735445435880,-450.11350834,0.00012985,2]
[346974431,1735445435891,-999.1096,0.00012985,2]
[346974433,1735445435906,-992.84,0.00012985,2]
[346974447,1735445437766,-618.49444355,0.00012985,2]
[346974448,1735445437778,-1277.4703495,0.00012985,2]
[346974451,1735445437819,-2904.31209861,0.00012985,2]
[346974452,1735445437829,-857.16,0.00012985,2]
[346974453,1735445437840,-1524.32,0.00012985,2]
[346974454,1735445437850,-1060.89,0.00012985,2]
[346974455,1735445437859,-500.0,0.00012985,2]
[346974456,1735445437869,-1195.08,0.00012985,2]
[346974457,1735445437878,-500.0,0.00012985,2]
[346974458,1735445437887,-1138.41,0.00012985,2]
[346974459,1735445437896,-3586.31,0.00012985,2]
[346974460,1735445437905,-5928.79,0.00012985,2]
[346974461,1735445437914,-529.78,0.00012985,2]
[346974462,1735445437923,-4837.12,0.00012985,2]
[346974463,1735445437933,-5111.17,0.00012985,2]
[346974464,1735445437942,-759.83,0.00012985,2]
[346974465,1735445437951,-2207.22,0.00012985,2]
[346974466,1735445437960,-860.01,0.00012985,2]
[346974467,1735445437969,-5486.52,0.00012985,2]
[346974468,1735445437979,-880.76,0.00012985,2]
[346974469,1735445437988,-1807.61,0.00012985,2]
[346974470,1735445437997,-2116.98,0.00012985,2]
[346974471,1735445438006,-3819.62,0.00012985,2]
[346974472,1735445438015,-1816.67,0.00012985,2]
[346974473,1735445438024,-945.18,0.00012985,2]
[346974474,1735445438034,-500.0,0.00012985,2]
[346974475,1735445438043,-500.0,0.00012985,2]
[346974476,1735445438053,-500.0,0.00012985,2]
[346974477,1735445438062,-500.0,0.00012985,2]
[346974478,1735445438071,-1494.06,0.00012985,2]
[346974479,1735445438081,-500.0,0.00012985,2]
[346974480,1735445438090,-500.0,0.00012985,2]
[346974481,1735445438099,-500.0,0.00012985,2]
[346974482,1735445438109,-500.0,0.00012985,2]
[346974483,1735445438118,-828.84,0.00012985,2]
[346974484,1735445438127,-500.0,0.00012985,2]
[346974485,1735445438136,-1066.05,0.00012985,2]
[346974486,1735445438145,-686.28,0.00012985,2]
[346974487,1735445438155,-500.0,0.00012985,2]
[346974488,1735445438164,-500.0,0.00012986,2]
[346974489,1735445438174,-502.06621593,0.00012986,2]
[346974490,1735445438183,-505.95459153,0.00012986,2]
[346974492,1735445438192,-500.0,0.00012986,2]
[346974494,1735445438202,-181.14101817,0.00012986,2]
[346974496,1735445438211,-500.0,0.00012986,2]
[346974498,1735445438221,-500.0,0.00012986,2]
[346974500,1735445438230,-500.0,0.00012986,2]
[346974502,1735445438240,-1032.37,0.00012986,2]
[346974504,1735445438249,-500.0,0.00012986,2]
[346974506,1735445438258,-500.0,0.00012986,2]
[346974508,1735445438267,-500.0,0.00012986,2]
[346974510,1735445438276,-500.0,0.00012986,2]
[346974512,1735445438285,-500.0,0.00012986,2]
[346974514,1735445438294,-500.0,0.00012986,2]
[346974516,1735445438303,-500.0,0.00012986,2]
[346974518,1735445438313,-500.0,0.00012986,2]
[346974520,1735445438322,-500.0,0.00012986,2]
[346974522,1735445438332,-500.0,0.00012986,2]
[346974524,1735445438342,-500.0,0.00012986,2]
[346974526,1735445438351,-500.0,0.00012986,2]
[346974528,1735445438361,-500.0,0.00012986,2]
[346974530,1735445438370,-500.0,0.00012986,2]
[346974532,1735445438379,-500.0,0.00012986,2]
[346974534,1735445438388,-500.0,0.00012986,2]
[346974536,1735445438397,-500.0,0.00012986,2]
[346974538,1735445438407,-500.0,0.00012986,2]
[346974540,1735445438416,-500.0,0.00012986,2]
[346974542,1735445438425,-507.16300827,0.00012986,2]
[346974544,1735445438434,-500.0,0.00012986,2]
[346974546,1735445438444,-500.0,0.00012986,2]
[346974548,1735445438453,-589.71,0.00012986,2]
[346974550,1735445438462,-500.0,0.00012986,2]
[346974552,1735445438471,-500.0,0.00012986,2]
[346974554,1735445438480,-500.0,0.00012986,2]
[346974556,1735445438489,-500.0,0.00012986,2]
[346974558,1735445438498,-500.0,0.00012986,2]
[346974560,1735445438507,-500.0,0.00012986,2]
[346974562,1735445438516,-500.0,0.00012986,2]
[346974564,1735445438525,-500.0,0.00012986,2]
[346974566,1735445438535,-500.0,0.00012986,2]
[346974568,1735445438544,-500.0,0.00012986,2]
[346974570,1735445438554,-500.0,0.00012986,2]
[346974572,1735445438564,-500.0,0.00012986,2]
[346974574,1735445438573,-500.0,0.00012986,2]
[346974576,1735445438582,-500.0,0.00012986,2]
[346974578,1735445438592,-518.19253935,0.00012986,2]
[346974580,1735445438602,-500.0,0.00012986,2]
[346974582,1735445438611,-685.26,0.00012986,2]
[346974584,1735445438620,-500.0,0.00012986,2]
[346974586,1735445438629,-512.89775045,0.00012986,2]
[346974588,1735445438638,-500.0,0.00012986,2]
[346974590,1735445438647,-500.0,0.00012986,2]
[346974592,1735445438657,-500.0,0.00012986,2]
[346974594,1735445438666,-500.0,0.00012986,2]
[346974596,1735445438675,-500.0,0.00012986,2]
[346974598,1735445438684,-500.0,0.00012986,2]
[346974600,1735445438693,-500.0,0.00012986,2]
[346974602,1735445438702,-500.0,0.00012986,2]
[346974624,1735445438894,-500.0,0.00012986,2]
[346974627,1735445438910,-655.62,0.00012986,2]
[346974629,1735445438920,-500.0,0.00012986,2]
[346974631,1735445438929,-1454.58,0.00012986,2]
[346974632,1735445438938,-500.0,0.00012986,2]
[346974633,1735445438947,-1454.58,0.00012986,2]
[346974634,1735445438956,-500.0,0.00012986,2]
[346974635,1735445438964,-500.0,0.00012986,2]
[346974636,1735445438973,-500.0,0.00012986,2]
[346974637,1735445438982,-500.0,0.00012986,2]
[346974638,1735445438991,-500.0,0.00012986,2]
[346974639,1735445439000,-724.27,0.00012986,2]
[346974640,1735445439010,-500.0,0.00012986,2]
[346974641,1735445439019,-500.0,0.00012986,2]
[346974643,1735445439029,-500.0,0.00012986,2]
[346974645,1735445439038,-500.0,0.00012986,2]
[346974647,1735445439047,-500.0,0.00012986,2]
[346974649,1735445439056,-500.0,0.00012986,2]
[346974651,1735445439065,-500.0,0.00012986,2]
[346974653,1735445439074,-500.0,0.00012986,2]
[346974655,1735445439083,-500.0,0.00012986,2]
[346974657,1735445439092,-500.0,0.00012986,2]
[346974659,1735445439101,-500.0,0.00012986,2]
[346974661,1735445439111,-500.0,0.00012986,2]
[346974663,1735445439121,-500.0,0.00012986,2]
[346974665,1735445439130,-500.0,0.00012986,2]
[346974667,1735445439139,-500.0,0.00012986,2]
[346974669,1735445439148,-500.0,0.00012986,2]
[346974671,1735445439157,-500.0,0.00012986,2]
[346974673,1735445439166,-500.0,0.00012986,2]
[346974675,1735445439175,-500.0,0.00012986,2]
[346974677,1735445439185,-500.0,0.00012986,2]
[346974679,1735445439194,-500.0,0.00012986,2]
[346974681,1735445439203,-500.0,0.00012986,2]
[346974683,1735445439212,-500.0,0.00012986,2]
[346974685,1735445439222,-500.0,0.00012986,2]
[346974687,1735445439231,-500.0,0.00012986,2]
[346974689,1735445439240,-500.0,0.00012986,2]
[346974691,1735445439250,-500.0,0.00012986,2]
[346974693,1735445439259,-500.0,0.00012986,2]
[346974695,1735445439268,-500.0,0.00012986,2]
[346974697,1735445439278,-500.0,0.00012986,2]
[346974699,1735445439287,-500.0,0.00012986,2]
[346974702,1735445439295,-500.0,0.00012986,2]
[346974703,1735445439305,-500.0,0.00012986,2]
[346974706,1735445439314,-500.0,0.00012986,2]
[346974708,1735445439323,-500.0,0.00012986,2]
[346974709,1735445439331,-209.93751958,0.00012986,2]
[346974712,1735445439344,-500.0,0.00012986,2]
[346974714,1735445439353,-500.0,0.00012986,2]
[346974716,1735445439363,-500.0,0.00012986,2]
[346974718,1735445439371,-500.0,0.00012986,2]
[346974720,1735445439380,-234.58108588,0.00012986,2]
[346974722,1735445439389,-500.0,0.00012986,2]
[346974724,1735445439398,-500.0,0.00012986,2]
[346974726,1735445439407,-500.0,0.00012986,2]
[346974728,1735445439416,-500.0,0.00012986,2]
[346974730,1735445439425,-500.0,0.00012986,2]
[346974732,1735445439434,-500.0,0.00012986,2]
[346974734,1735445439443,-500.0,0.00012986,2]
[346974736,1735445439452,-500.0,0.00012986,2]
[346974738,1735445439461,-500.0,0.00012986,2]
[346974740,1735445439470,-500.0,0.00012986,2]
[346974742,1735445439479,-500.0,0.00012986,2]
[346974744,1735445439488,-500.0,0.00012986,2]
[346974746,1735445439498,-376.87363578,0.00012986,2]
[346974748,1735445439507,-500.0,0.00012986,2]
[346974750,1735445439516,-500.0,0.00012986,2]
[346974752,1735445439525,-500.0,0.00012986,2]
[346974754,1735445439534,-376.49827746,0.00012986,2]
[346974756,1735445439543,-500.0,0.00012986,2]
[346974758,1735445439552,-500.0,0.00012986,2]
[346974760,1735445439561,-500.0,0.00012986,2]
[346974762,1735445439570,-500.0,0.00012986,2]
[346974764,1735445439579,-500.0,0.00012986,2]
[346974766,1735445439589,-500.0,0.00012986,2]
[346974768,1735445439598,-500.0,0.00012986,2]
[346974770,1735445439609,-500.0,0.00012986,2]
[346974772,1735445439618,-500.0,0.00012986,2]
[346974775,1735445439627,-611.72,0.00012986,2]
[346974777,1735445439636,-500.0,0.00012986,2]
[346974778,1735445439646,-500.0,0.00012986,2]
[346974780,1735445439655,-500.0,0.00012986,2]
[346974783,1735445439664,-500.0,0.00012986,2]
[346974785,1735445439673,-500.0,0.00012986,2]
[346974787,1735445439682,-500.0,0.00012986,2]
[346974789,1735445439691,-500.0,0.00012986,2]
[346974791,1735445439700,-500.0,0.00012986,2]
[346974793,1735445439709,-500.0,0.00012986,2]
[346974795,1735445439718,-500.0,0.00012986,2]
[346974798,1735445439727,-500.0,0.00012986,2]
[346974800,1735445439736,-500.0,0.00012986,2]
[346974802,1735445439745,-500.0,0.00012986,2]
[346974804,1735445439760,-500.0,0.00012986,2]
[346974806,1735445439769,-500.0,0.00012986,2]
[346974809,1735445439778,-500.0,0.00012986,2]
[346974811,1735445439787,-522.94,0.00012986,2]
[346974813,1735445439796,-512.61335647,0.00012986,2]
[346974815,1735445439806,-500.0,0.00012986,2]
[346974817,1735445439814,-500.0,0.00012986,2]
[346974819,1735445439823,-500.0,0.00012986,2]
[346974821,1735445439835,-500.0,0.00012986,2]
[346974823,1735445439845,-500.0,0.00012986,2]
[346974825,1735445439854,-500.0,0.00012986,2]
[346974827,1735445439863,-500.0,0.00012986,2]
[346974829,1735445439873,-500.0,0.00012986,2]
[346974831,1735445439882,-500.0,0.00012986,2]
[346974833,1735445439891,-500.0,0.00012986,2]
[346974835,1735445439900,-500.0,0.00012986,2]
[346974837,1735445439909,-500.0,0.00012986,2]
[346974839,1735445439919,-500.0,0.00012986,2]
[346974841,1735445439928,-500.0,0.00012986,2]
[346974843,1735445439938,-500.0,0.00012986,2]
[346974845,1735445439947,-500.0,0.00012986,2]
[346974847,1735445439956,-798.97,0.00012986,2]
[346974849,1735445439965,-500.0,0.00012986,2]
[346974851,1735445439975,-500.0,0.00012986,2]
[346974853,1735445439984,-500.0,0.00012986,2]
[346974855,1735445439993,-500.0,0.00012986,2]
[346974858,1735445440002,-503.54,0.00012986,2]
[346974860,1735445440011,-500.0,0.00012986,2]
[346974862,1735445440020,-500.0,0.00012986,2]
[346974864,1735445440029,-480.22358865,0.00012986,2]
[346974867,1735445440049,-19.77641135,0.00012986,2]
[346974869,1735445440058,-500.0,0.00012986,2]
[346974871,1735445440067,-500.0,0.00012986,2]
[346974873,1735445440076,-500.0,0.00012986,2]
[346974875,1735445440085,-500.0,0.00012986,2]
[346974877,1735445440095,-500.0,0.00012986,2]
[346974879,1735445440104,-484.41339675,0.00012986,2]
[346974881,1735445440121,-15.58660325,0.00012986,2]
[346974883,1735445440130,-500.0,0.00012986,2]
[346974885,1735445440140,-500.0,0.00012986,2]
[346974887,1735445440149,-742.74,0.00012986,2]
[346974889,1735445440159,-500.0,0.00012986,2]
[346974891,1735445440168,-312.60441203,0.00012986,2]
[346974894,1735445440179,-187.39558797,0.00012986,2]
[346974896,1735445440188,-499.13664371,0.00012986,2]
[346974936,1735445440546,-777.12919889,0.00012985,2]
[346974941,1735445440588,-310.63265465,0.00012985,2]
[346974946,1735445440622,-1204.23814646,0.00012985,2]
[346974948,1735445440632,-0.86335629,0.00012986,2]
[346974950,1735445440641,-512.07354905,0.00012986,2]
[346974952,1735445440650,-500.0,0.00012986,2]
[346974954,1735445440659,-500.0,0.00012986,2]
[346974956,1735445440667,-805.28,0.00012986,2]
[346974958,1735445440677,-500.0,0.00012986,2]
[346974960,1735445440686,-500.0,0.00012986,2]
[346974962,1735445440695,-500.0,0.00012986,2]
[346974964,1735445440705,-500.0,0.00012986,2]
[346974966,1735445440714,-500.0,0.00012986,2]
[346974968,1735445440723,-500.0,0.00012986,2]
[346974970,1735445440732,-500.0,0.00012986,2]
[346974972,1735445440741,-500.0,0.00012986,2]
[346974974,1735445440751,-500.0,0.00012986,2]
[346974976,1735445440764,-500.0,0.00012986,2]
[346974978,1735445440773,-500.0,0.00012986,2]
[346974980,1735445440782,-500.0,0.00012986,2]
[346974982,1735445440791,-500.0,0.00012986,2]
[346974984,1735445440800,-500.0,0.00012986,2]
[346974986,1735445440809,-500.0,0.00012986,2]